Workbook

Sheet 기본작업-1
A1: 교원확보율
A3: 학과코드 | B3: 학과명 | C3: 학제 | D3: 전체학생수 | E3: 전체교원 | F3: 정원/전임(겸임) | G3: 전임
A4: KA-45267 | B4: 경영정보과 | C4: 2년 | D4: 140 | E4: 6명 | F4: 6/3(3) | G4: 50.00%
A5: LT-95872 | B5: 간호과 | C5: 4년 | D5: 130 | E5: 8명 | F5: 7/6(2) | G5: 85.71%
A6: SQ-89163 | B6: 사회복지과 | C6: 3년 | D6: 150 | E6: 7명 | F6: 6/4(3) | G6: 66.67%
A7: TB-37245 | B7: 유아교육과 | C7: 3년 | D7: 210 | E7: 9명 | F7: 9/6(3) | G7: 66.67%
A8: AV-32896 | B8: 정보통신과 | C8: 2년 | D8: 150 | E8: 6명 | F8: 8/3(3) | G8: 37.50%
A9: CT-92578 | B9: 컴퓨터정보과 | C9: 3년 | D9: 105 | E9: 4명 | F9: 6/3(1) | G9: 50.00%
A10: PW-4128 | B10: 식품생명공학과 | C10: 4년 | D10: 120 | E10: 7명 | F10: 7/5(2) | G10: 71.43%

Sheet 기본작업-2
A1: 인성인증 항목 및 배점표
A3: 인증영역 | B3: 인증항목 | C3: 내용 | D3: 배점 | E3: 회수 | F3: 최대배점
A4: 기본영역 | B4: 출석률 | C4: 95~100 | D4: 45 | E4: 2 | F4: 90
C5: 90~95 | D5: 40 | E5: 2
C6: 80~89 | D6: 40 | E6: 2
A7: 인성점수 | B7: 문화관람 | C7: 영화/연극/전시회 | D7: 3 | E7: 10 | F7: 30
B8: 헌혈 | C8: 헌혈참여 | D8: 10 | E8: 5
B9: 교외봉사 | C9: 봉사시간 | D9: 2 | E9: 35

Sheet 기본작업-3
A1: 컴퓨터활용 성적
A3: 학번 | B3: 이름 | C3: 중간 | D3: 중간(40) | E3: 기말 | F3: 기말(40) | G3: 출석(20) | H3: 합계
A4: 201213056 | B4: 김대훈 | C4: 25 | D4: =50+C4/2 -> 63 | E4: 15 | F4: =50+E4/2 -> 58 | G4: 18 | H4: =(D4+F4)*0.4+G4 -> 66
A5: 201309060 | B5: 김세인 | C5: 68 | D5: 84 | E5: 10 | F5: 55 | G5: 16 | H5: 72
A6: 201121010 | B6: 김송희 | C6: 38 | D6: 69 | E6: 8 | F6: 54 | G6: 18 | H6: 67
A7: 201118036 | B7: 김은지 | C7: 30 | D7: 65 | E7: 30 | F7: 65 | G7: 20 | H7: 72
A8: 201415093 | B8: 김지수 | C8: 88 | D8: 94 | E8: 90 | F8: 95 | G8: 20 | H8: 96
A9: 201214036 | B9: 박병재 | C9: 44 | D9: 72 | E9: 5 | F9: 53 | G9: 18 | H9: 68
A10: 201330056 | B10: 박준희 | C10: 43 | D10: 71 | E10: 20 | F10: 60 | G10: 16 | H10: 69
A11: 201309025 | B11: 박하늘 | C11: 25 | D11: 63 | E11: 20 | F11: 60 | G11: 16 | H11: 65
A12: 200906050 | B12: 윤경문 | C12: 88 | D12: 94 | E12: 50 | F12: 75 | G12: 16 | H12: 84
A13: 201118046 | B13: 이다정 | C13: 88 | D13: 94 | E13: 80 | F13: 90 | G13: 20 | H13: 94
A14: 201415058 | B14: 이종희 | C14: 0 | D14: 50 | E14: 10 | F14: 55 | G14: 18 | H14: 60
A15: 201415087 | B15: 임천규 | C15: 50 | D15: 75 | E15: 40 | F15: 70 | G15: 20 | H15: 78
A16: 201202075 | B16: 임태헌 | C16: 20 | D16: 60 | E16: 15 | F16: 58 | G16: 20 | H16: 67
A17: 201415065 | B17: 최서현 | C17: 50 | D17: 75 | E17: 40 | F17: 70 | G17: 20 | H17: 78
A18: 201320030 | B18: 홍주희 | C18: 34 | D18: 67 | E18: 10 | F18: 55 | G18: 16 | H18: 65

Sheet 계산작업
A1: [표1] 자격증 응시일 | F1: [표2]
A2: 응시지역 | B2: 성명 | C2: 응시일 | D2: 요일 | F2: 성명 | G2: 중간고사 | H2: 기말고사 | I2: 학점
A3: 광주 | B3: 김종민 | C3: 2016-05-15 | D3: =IF(WEEKDAY(C3,2)<=5,"평일","주말") -> 주말 | F3: 김미정 | G3: 85 | H3: 90 | I3: =HLOOKUP(AVERAGE(G3:H3),$G$12:$K$14,3,1) -> B
A4: 서울 | B4: 강원철 | C4: 2016-10-24 | D4: =IF(WEEKDAY(C4,2)<=5,"평일","주말") -> 평일 | F4: 서진수 | G4: 65 | H4: 70 | I4: =HLOOKUP(AVERAGE(G4:H4),$G$12:$K$14,3,1) -> D
A5: 안양 | B5: 이진수 | C5: 2016-03-05 | D5: 주말 | F5: 박주영 | G5: 70 | H5: 95 | I5: B
A6: 부산 | B6: 박정민 | C6: 2016-08-17 | D6: 평일 | F6: 원영현 | G6: 90 | H6: 75 | I6: B
A7: 인천 | B7: 한수경 | C7: 2016-11-12 | D7: 주말 | F7: 오선영 | G7: 60 | H7: 75 | I7: D
A8: 제주 | B8: 유미진 | C8: 2016-12-12 | D8: 평일 | F8: 최은미 | G8: 95 | H8: 85 | I8: A
A9: 대전 | B9: 정미영 | C9: 2016-02-25 | D9: 평일 | F9: 박진희 | G9: 70 | H9: 85 | I9: C
F11: 학점기준표
A12: [표3] | F12: 평균 | G12: 0 이상 | H12: 60 이상 | I12: 70 이상 | J12: 80 이상 | K12: 90 이상
A13: 학과 | B13: 성명 | C13: 생년월일 | D13: 평점 | G13: 60 미만 | H13: 70 미만 | I13: 80 미만 | J13: 90 미만 | K13: 100 이하
A14: 컴퓨터학과 | B14: 유창상 | C14: 1995-10-20 | D14: 3.45 | F14: 학점 | G14: F | H14: D | I14: C | J14: B | K14: A
A15: 경영학과 | B15: 김현수 | C15: 1994-03-02 | D15: 4.02
A16: 경영학과 | B16: 한경수 | C16: 1994-08-22 | D16: 3.67
A17: 컴퓨터학과 | B17: 정수연 | C17: 1992-01-23 | D17: 3.89 | F17: IF(조건,참,거짓)
A18: 정보통신과 | B18: 최경철 | C18: 1995-05-12 | D18: 3.12 | F18: 조건=> 평일이냐? WEEKDAY
A19: 정보통신과 | B19: 오태환 | C19: 1996-07-05 | D19: 3.91
A20: 컴퓨터학과 | B20: 임장미 | C20: 1995-10-26 | D20: 4.15
A21: 경영학과 | B21: 이민호 | C21: 1993-06-27 | D21: 3.52
A23: 조건
A24: 학과 | B24: 경영학과 평균 평점 | D24: =ROUND(DAVERAGE(A13:D21,D13,A24:A25),2) -> 3.74 | F24: 평균->소수이하 둘째자리 반올림
A25: 경영학과 | F25: round(daverage( ))
A27: [표4] | F27: [표5]
A28: 학생명 | B28: 커뮤니케이션 | C28: 회계 | D28: 경영전략 | F28: 학과 | G28: 입학일자 | H28: 입학코드
A29: 유창상 | B29: 77 | C29: 75 | D29: 88 | F29: HEALTHCARE | G29: 2015-03-02 | H29: =PROPER(LEFT(F29,3))&YEAR(G29) -> Hea2015
A30: 김현수 | B30: 58 | C30: 76 | D30: 78 | F30: HEALTHCARE | G30: 2017-03-03 | H30: =PROPER(LEFT(F30,3))&YEAR(G30) -> Hea2017
A31: 한경수 | B31: 68 | C31: 70 | D31: 80 | F31: COMPUTER | G31: 2015-03-02 | H31: Com2015
A32: 정수연 | B32: 53 | C32: 69 | D32: 94 | F32: COMPUTER | G32: 2017-03-02 | H32: Com2017
A33: 최경철 | B33: 73 | C33: 75 | D33: 91 | F33: DESIGN | G33: 2014-03-02 | H33: Des2014
A34: 오태환 | B34: 55 | C34: 67 | D34: 88 | F34: DESIGN | G34: 2016-03-02 | H34: Des2016
A35: 임장미 | B35: 95 | C35: 89 | D35: 79 | F35: ARTS-THERAPY | G35: 2013-03-02 | H35: Art2013
F36: ARTS-THERAPY | G36: 2016-03-02 | H36: Art2016
A37: 모든 과목이 70 이상인 학생 수 | D37: =COUNTIFS(B29:B35,">=70",C29:C35,">=70",D29:D35,">=70") -> 3

Sheet 분석작업-1
A1: 소양인증포인트 현황
A3: 학과 | B3: 성명 | C3: 기본영역 | D3: 인성봉사 | E3: 교육훈련 | F3: 합계
A4: 경영정보 | B4: 정소영 | C4: 85 | D4: 75 | E4: 75 | F4: =SUM(C4:E4) -> 235
A5: 경영정보 | B5: 주경철 | C5: 85 | D5: 85 | E5: 75 | F5: =SUM(C5:E5) -> 245
A6: 경영정보 | B6: 한기철 | C6: 90 | D6: 70 | E6: 85 | F6: =SUM(C6:E6) -> 245
A7: 경영정보 평균 | C7: =SUBTOTAL(1,C4:C6) -> 86.66666667 | D7: =SUBTOTAL(1,D4:D6) -> 77 | E7: =SUBTOTAL(1,E4:E6) -> 78
A8: 경영정보 최대값 | F8: =SUBTOTAL(4,F4:F6) -> 245
A9: 유아교육 | B9: 강소미 | C9: 95 | D9: 65 | E9: 65 | F9: =SUM(C9:E9) -> 225
A10: 유아교육 | B10: 이주현 | C10: 100 | D10: 90 | E10: 80 | F10: =SUM(C10:E10) -> 270
A11: 유아교육 | B11: 한보미 | C11: 80 | D11: 70 | E11: 90 | F11: =SUM(C11:E11) -> 240
A12: 유아교육 평균 | C12: =SUBTOTAL(1,C9:C11) -> 91.66666667 | D12: =SUBTOTAL(1,D9:D11) -> 75 | E12: =SUBTOTAL(1,E9:E11) -> 78
A13: 유아교육 최대값 | F13: =SUBTOTAL(4,F9:F11) -> 270
A14: 정보통신 | B14: 김경호 | C14: 95 | D14: 75 | E14: 95 | F14: =SUM(C14:E14) -> 265
A15: 정보통신 | B15: 박주영 | C15: 85 | D15: 50 | E15: 80 | F15: =SUM(C15:E15) -> 215
A16: 정보통신 | B16: 임정민 | C16: 90 | D16: 80 | E16: 60 | F16: =SUM(C16:E16) -> 230
A17: 정보통신 평균 | C17: =SUBTOTAL(1,C14:C16) -> 90 | D17: =SUBTOTAL(1,D14:D16) -> 68 | E17: =SUBTOTAL(1,E14:E16) -> 78
A18: 정보통신 최대값 | F18: =SUBTOTAL(4,F14:F16) -> 265
A19: 전체 평균 | C19: =SUBTOTAL(1,C4:C16) -> 89.44444444 | D19: =SUBTOTAL(1,D4:D16) -> 73 | E19: =SUBTOTAL(1,E4:E16) -> 78
A20: 전체 최대값 | F20: =SUBTOTAL(4,F4:F16) -> 270

Sheet 분석작업-2
A1: 학과별 인증 점수 취득 총점
A3: [표1] 2013년 | F3: [표4]
A4: 학과 | B4: 정보인증 | C4: 국제인증 | D4: 전공인증 | F4: 학과 | G4: 정보인증 | H4: 국제인증 | I4: 전공인증
A5: 컴퓨터정보과 | B5: 10800 | C5: 9000 | D5: 9140 | F5: 컴퓨터정보과 | G5: 31520 | H5: 21860 | I5: 36200
A6: 유아교육과 | B6: 9200 | C6: 13780 | D6: 13080 | F6: 컴퓨터게임과 | G6: 25320 | H6: 26200 | I6: 24000
A7: 컴퓨터게임과 | B7: 9060 | C7: 9160 | D7: 9140 | F7: 유아교육과 | G7: 22500 | H7: 32040 | I7: 25600
A8: 특수교육과 | B8: 3780 | C8: 3680 | D8: 2840 | F8: 특수교육과 | G8: 13440 | H8: 26520 | I8: 34100
A10: [표2] 2014년
A11: 학과 | B11: 정보인증 | C11: 국제인증 | D11: 전공인증
A12: 컴퓨터정보과 | B12: 11360 | C12: 5780 | D12: 17940
A13: 컴퓨터게임과 | B13: 9560 | C13: 13960 | D13: 11560
A14: 특수교육과 | B14: 3960 | C14: 9140 | D14: 19700
A15: 유아교육과 | B15: 3740 | C15: 3300 | D15: 2840
A17: [표3] 2015년
A18: 학과 | B18: 정보인증 | C18: 국제인증 | D18: 전공인증
A19: 컴퓨터정보과 | B19: 9360 | C19: 7080 | D19: 9120
A20: 특수교육과 | B20: 5700 | C20: 13700 | D20: 11560
A21: 컴퓨터게임과 | B21: 6700 | C21: 3080 | D21: 3300
A22: 유아교육과 | B22: 9560 | C22: 14960 | D22: 9680

Sheet 매크로작업
A1: 소양직무인증점수
A3: 학과 | B3: 성명 | C3: 소양인증 | D3: 직무인증 | E3: 총점
A4: 컴퓨터정보과 | B4: 김영우 | C4: 5780 | D4: 17940 | E4: =C4+D4 -> 23720
A5: 컴퓨터게임과 | B5: 강주찬 | C5: 13960 | D5: 11560 | E5: =C5+D5 -> 25520
A6: 특수교육과 | B6: 이홍주 | C6: 9140 | D6: 19700 | E6: 28840
A7: 유아교육과 | B7: 박상아 | C7: 3300 | D7: 2840 | E7: 6140
A8: 정보통신과 | B8: 정성준 | C8: 4580 | D8: 4650 | E8: 9230

Sheet 차트작업
A1: 연도별 장학금 현황
A3: 구분 | B3: 2012년 | C3: 2013년 | D3: 2014년 | E3: 2015년
A4: 성적장학 | B4: 42,437 | C4: 43,632 | D4: 47,664 | E4: 47,254
A5: 가계장학 | B5: 11,666 | C5: 12,769 | D5: 13,182 | E5: 14,568
A6: 근로장학 | B6: 27,345 | C6: 27,973 | D6: 31,570 | E6: 33,280
A7: 합계 | B7: 81,448 | C7: 84,374 | D7: 92,353 | E7: 95,102
